Cogmind - Beta 9.1 @@@ ROGUE MODE // 2019.11.04 @ 20:55:17 Player: fartblaster Result: Smashed by cave-in Performance ------------- Evolutions (0) 0 Regions Visited (4) 800 Robots Destroyed (29) 145 Value Destroyed (639) 639 Prototype IDs (0) 0 Alien Tech Used (0) 0 Bonus (256) 256 TOTAL SCORE: 1840 Bonus ------- Aligned with FarCom 300 Friendly Fire -44 Cogmind --------- Core Integrity 0/250 Matter 44/300 Energy 125/125 System Corruption 0% Temperature Cool (156) Location -9/Mines Parts ------- Power (1) Light Ion Engine Propulsion (2) Aluminum Leg Aluminum Leg Utility (2) Medium Storage Unit Structural Scanner Weapon (2) Bore Cannon Inventory (8) Light Treads Light Treads Large Battery (300) Small Matter Pod (0) Sensor Array Terrain Scanner Assault Rifle Light Assault Rifle Peak State ------------ Power Light Ion Engine Propulsion Light Treads Light Treads Utility Medium Storage Unit Sensor Array Weapon Assault Rifle Bore Cannon Inventory Aluminum Leg Aluminum Leg Small Matter Pod Terrain Scanner Modified TNC Medium Laser Light Assault Rifle Grenade Launcher [Rating: 12] Favorites ----------- Power Light Ion Engine Engine Light Ion Engine Propulsion Light Treads Treads Light Treads Leg Aluminum Leg Utility Medium Storage Unit Device Sensor Array Storage Medium Storage Unit Weapon Assault Rifle Energy Gun Medium Laser Ballistic Gun Assault Rifle Ballistic Cannon Bore Cannon Launcher Grenade Launcher Build | -11 -10 -10 -10 -9 ------- Run | Scr Mat Min Exi Min Slots Evolved . | . . . . . Power . | . . . . . Propulsion . | . . . . . Utility . | . . . . . Weapon . | . . . . . Parts Attached 26 | 6 6 7 1 6 Power 3 | 1 . 2 . . Engine 3 | 1 . 2 . . Core . | . . . . . Reactor . | . . . . . Propulsion 5 | 2 1 . . 2 Treads 3 | 2 1 . . . Leg 2 | . . . . 2 Wheel . | . . . . . Hover . | . . . . . Flight . | . . . . . Utility 7 | 1 1 2 1 2 Device 5 | . 1 1 1 2 Storage 2 | 1 . 1 . . Processor . | . . . . . Hackware . | . . . . . Protection . | . . . . . Artifact . | . . . . . Weapon 11 | 2 4 3 . 2 Energy Gun 4 | . 2 1 . 1 Energy Cannon . | . . . . . Ballistic Gun 2 | 2 . . . . Ballistic Cannon 1 | . . 1 . . Launcher 4 | . 2 1 . 1 Special Weapon . | . . . . . Impact Weapon . | . . . . . Slashing Weapon . | . . . . . Piercing Weapon . | . . . . . Special Melee Weapon . | . . . . . Unidentified Prototypes . | . . . . . Parts Lost 3 | . 1 . . 2 Power 1 | . 1 . . . Propulsion . | . . . . . Utility . | . . . . . Weapon 2 | . . . . 2 Highest Loss Streak 1 | . 1 . . 1 Average Slot Usage (%) 96 | . 82 97 100 99 Engine 12 | . 10 11 14 14 Treads 25 | . 28 28 28 17 Leg 2 | . . . . 10 Device 12 | . . 14 14 14 Storage 14 | . 14 14 14 14 Energy Gun 4 | . 2 8 . 3 Ballistic Gun 13 | . 22 14 14 7 Ballistic Cannon 8 | . . 4 14 14 Launcher 1 | . 3 . . 2 Naked Turns . | . . . . . Heaviest Build 24 | 10 12 23 23 24 Greatest Support 40 | 40 40 40 40 40 Greatest Overweight (x) 1 | . . . . 1 Average Overweight (x) . | . . . . . Largest Inventory Capacity 8 | 6 6 8 8 8 Average Capacity 7 | 5 6 7 8 8 Most Carried 8 | 4 6 8 8 8 Average Carried 6 | 1 5 6 7 7 Final Capacity 8 | 6 6 8 8 8 Final Carried 8 | 4 6 8 8 8 Class Distribution -------------------- 87% | Mutant 12% | Skirmisher Dominant Class ---------------- Mutant | -10/Materials Mutant | -10/Mines Mutant | -10/Exiles Skirmisher | -9/Mines Resources | -11 -10 -10 -10 -9 ----------- Run | Scr Mat Min Exi Min Matter Collected 615 | 225 22 104 . 264 Remotely . | . . . . . Salvage Created 526 | . 167 108 . 251 Parts 41 | . 7 13 . 21 Haulers Intercepted . | . . . . . Recyclers Shooed 1 | . . . . 1 Parts Field Recycled . | . . . . . Retrieved Matter . | . . . . . Parts Self-Destructed . | . . . . . Prevented . | . . . . . Kills | -11 -10 -10 -10 -9 ------- Run | Scr Mat Min Exi Min Combat Hostiles Destroyed 19 | . 6 7 . 6 Guns 4 | . . 3 . 1 Cannons 4 | . . 1 . 3 AOE 11 | . 6 3 . 2 Classes Destroyed 6 | . 3 1 . 2 Builder 4 | . 1 1 . 2 Tunneler 4 | . . . . 4 Watcher 1 | . 1 . . . Swarmer 5 | . . 5 . . Grunt 14 | . 6 2 . 6 Zionite 1 | . . . . 1 Best Kill Streak 6 | . 6 5 . 5 Combat Bots Only 4 | . 4 4 . 3 Max Kills in Single Turn 4 | . 2 3 . 4 Gunslinging . | . . . . . Exploded 2 | . 1 2 . 1 Melee . | . . . . . Uniques/NPCs Destroyed . | . . . . . Combat | -11 -10 -10 -10 -9 -------- Run | Scr Mat Min Exi Min Damage Taken 1097 | . 267 365 . 465 Core 257 | . 88 93 . 76 Absorbed by Shields . | . . . . . Core Remaining (%) 100 | 100 . . . . Volleys Fired 60 | . 15 19 . 26 Largest 2 | . 2 2 . 2 Hottest 107 | . 50 77 . 107 Shots Fired 85 | . 21 28 . 36 Gun 42 | . 11 22 . 9 Cannon 26 | . . 2 . 24 Launcher 17 | . 10 4 . 3 Special . | . . . . . Kinetic 53 | . 11 11 . 31 Thermal 15 | . . 13 . 2 Explosive 17 | . 10 4 . 3 Electromagnetic . | . . . . . Robot Hit Streak 7 | . 4 7 . 5 Robot Miss Streak 5 | . 2 5 . 4 Penetration Max . | . . . . . Secondary Targets 1 | . . 1 . . Max Gunslinging Chain 1 | . . 1 . . Shots Hit Robots 43 | . 8 14 . 21 Core Hits 43 | . 13 14 . 16 Critical Hits 12 | . . 2 . 10 Critical Kills 4 | . . 1 . 3 Critical Parts Destroyed 8 | . . 1 . 7 Melee Attacks . | . . . . . Impact . | . . . . . Slashing . | . . . . . Piercing . | . . . . . Sneak Attacks . | . . . . . Combat Hostiles . | . . . . . Follow-up Attacks . | . . . . . Damage Inflicted 1782 | . 538 469 . 775 Guns 277 | . 72 140 . 65 Cannons 347 | . . 24 . 323 Explosions 1151 | . 466 298 . 387 Melee . | . . . . . Ramming 7 | . . 7 . . Kinetic 511 | . 72 76 . 363 Thermal 113 | . . 88 . 25 Explosive 1151 | . 466 298 . 387 Electromagnetic . | . . . . . Impact . | . . . . . Slashing . | . . . . . Piercing . | . . . . . Highest Corruption . | . . . . . Average Corruption . | . . . . . Corruption Purged . | . . . . . Overload Shots . | . . . . . Overflow Damage 33 | . . 3 . 30 Projectiles . | . . . . . Explosions 33 | . . 3 . 30 Melee . | . . . . . Knockbacks 7 | . . 1 . 6 Impact . | . . . . . Kinetic 7 | . . 1 . 6 Secondary . | . . . . . Self-Inflicted Damage 69 | . 30 . . 39 Shots 2 | . 1 . . 1 Rammed 2 | . . 2 . . Targets Rammed 2 | . . 2 . . Kicked . | . . . . . Crushed . | . . . . . Highest Temperature 288 | . 16 30 . 288 Average Temperature 79 | . 10 16 . 110 Received Heat Transfer 306 | . 135 63 . 108 Siege Activations . | . . . . . Robots Corrupted . | . . . . . Combat Hostiles . | . . . . . Parts Fried . | . . . . . Impact Corruptions . | . . . . . Robots Melted . | . . . . . Combat Hostiles . | . . . . . Parts Melted . | . . . . . Heat Transferred 333 | . . 259 . 74 Parts Sabotaged . | . . . . . Parts Stolen . | . . . . . Parts Stripped . | . . . . . Power Chain Reactions . | . . . . . Missiles Intercepted . | . . . . . Alert | -11 -10 -10 -10 -9 ------- Run | Scr Mat Min Exi Min Peak Influence 172 | . 172 161 . 77 Average Influence 62 | . 49 99 . 29 Maximum Alert Level . | . . . . . Low Security (%) 100 | . . . . . Level 1 . | . . . . . Level 2 . | . . . . . Level 3 . | . . . . . Level 4 . | . . . . . Level 5 . | . . . . . High Security . | . . . . . Max Security . | . . . . . Squads Dispatched 2 | . 2 . . . Investigation . | . . . . . Extermination . | . . . . . Reinforcement 2 | . 2 . . . Assault . | . . . . . Garrison . | . . . . . Intercept . | . . . . . Construction Impeded . | . . . . . Haulers Reinforced . | . . . . . Stealth | -11 -10 -10 -10 -9 --------- Run | Scr Mat Min Exi Min Distress Signals 2 | . 1 . . 1 Communications Jammed . | . . . . . Distress Signals . | . . . . . Times Spotted 22 | . 9 7 . 6 Peak Tracking Total 5 | . 5 4 . 2 Tactical Retreats . | . . . . . Traps | -11 -10 -10 -10 -9 ------- Run | Scr Mat Min Exi Min Traps Triggered . | . . . . . Indirectly . | . . . . . Trap Hack Attempts . | . . . . . Triggered . | . . . . . Disarmed . | . . . . . Reprogrammed . | . . . . . Reused . | . . . . . Traps Extracted . | . . . . . Installed . | . . . . . Triggered . | . . . . . Machines | -11 -10 -10 -10 -9 ---------- Run | Scr Mat Min Exi Min Machines Disabled 2 | . 2 . . . Max in Single Turn 1 | . 1 . . . Machines Sabotaged . | . . . . . Garrisons Compromised . | . . . . . Overloaded Fab Kills . | . . . . . Fab Network Shutdowns . | . . . . . Hacking | -11 -10 -10 -10 -9 --------- Run | Scr Mat Min Exi Min Machines Accessed . | . . . . . Terminals . | . . . . . Fabricators . | . . . . . Repair Stations . | . . . . . Recycling Units . | . . . . . Scanalyzers . | . . . . . Garrison Access . | . . . . . Total Hacks . | . . . . . Successful . | . . . . . Failed . | . . . . . Catastrophic . | . . . . . Database Lockouts . | . . . . . Manual 4 | . . . 4 . Terminals . | . . . . . Fabricators . | . . . . . Repair Stations . | . . . . . Recycling Units . | . . . . . Scanalyzers . | . . . . . Garrison Access . | . . . . . Terminal Hacks . | . . . . . Fabricator Hacks . | . . . . . Repair Station Hacks . | . . . . . Recycling Unit Hacks . | . . . . . Scanalyzer . | . . . . . Garrison Access Hacks . | . . . . . Unauthorized Hacks . | . . . . . Terminals . | . . . . . Fabricators . | . . . . . Repair Stations . | . . . . . Recycling Units . | . . . . . Scanalyzers . | . . . . . Garrison Access . | . . . . . Data Cores Recovered . | . . . . . Used . | . . . . . Hacking Detections . | . . . . . Full Trace Events . | . . . . . Feedback Events . | . . . . . Feedback Blocked . | . . . . . Robot Schematics Acquired . | . . . . . Robots Built . | . . . . . Matter . | . . . . . Time . | . . . . . Total Robot Build Rating . | . . . . . Part Schematics Acquired . | . . . . . Parts Built . | . . . . . Matter . | . . . . . Time . | . . . . . Total Part Build Rating . | . . . . . Parts Repaired . | . . . . . Time . | . . . . . Parts Recycled . | . . . . . Recycled Matter . | . . . . . Retrieved Matter . | . . . . . Retrieved Components . | . . . . . Parts Scanalyzed . | . . . . . Part Schematics Acquired . | . . . . . Parts Damaged . | . . . . . Bothacking | -11 -10 -10 -10 -9 ------------ Run | Scr Mat Min Exi Min Used RIF Installer . | . . . . . Robots Hacked . | . . . . . Non-combat . | . . . . . Combat . | . . . . . Robot Hacks Applied . | . . . . . Relay Couplers Released . | . . . . . Robots Rewired . | . . . . . Allies Hacked . | . . . . . Hacks Repelled . | . . . . . Allies | -11 -10 -10 -10 -9 -------- Run | Scr Mat Min Exi Min Total Allies 2 | . . . . 2 Largest Group 2 | . . . . 2 Highest-Rated Group 42 | . . . . 42 Highest-Rated Ally 31 | . . . . 31 Total Orders . | . . . . . Ally Attacks 1 | . . . . 1 Total Damage . | . . . . . Kills . | . . . . . Allies Corrupted . | . . . . . Allies Melted . | . . . . . Intel | -11 -10 -10 -10 -9 ------- Run | Scr Mat Min Exi Min Robot Analysis Total . | . . . . . Derelict Logs Recovered . | . . . . . Drone Launches . | . . . . . Drone Recoveries . | . . . . . Exploration | -11 -10 -10 -10 -9 ------------- Run | Scr Mat Min Exi Min Turns Passed 2137 | 125 255 715 578 464 Spaces Moved 1159 | 73 130 408 359 189 Core 4 | 4 . . . . Treads 1066 | 69 130 408 359 100 Legs 89 | . . . . 89 Wheels . | . . . . . Hover . | . . . . . Flight . | . . . . . Fastest Speed 50 | 50 160 160 160 150 Average Speed 158 | 153 160 160 160 155 Slowest Speed 160 | 160 160 160 160 160 Overloaded Moves . | . . . . . Propulsion Burnouts . | . . . . . Robots Hopped . | . . . . . Cave-ins Triggered 1 | . . . . 1 Exploration Rate (%) 34 | 6 26 59 50 30 Regions Visited 4 Branch Regions 3 Pre-discovered Areas . | . . . . . Known Exits Taken . | . . . . . Unknown Exits Taken 4 | 1 1 1 1 . Scrap Searched 1 | . . 1 . . Spaces Dug . | . . . . . Terrain Destroyed 117 | . 66 15 . 36 Melee . | . . . . . Projectile 13 | . . . . 13 AOE 104 | . 66 15 . 23 Actions | -11 -10 -10 -10 -9 --------- Run | Scr Mat Min Exi Min Total 1363 | 83 155 439 363 323 Wait 103 | 1 . 1 . 101 Move 1155 | 72 129 407 358 189 Hop . | . . . . . Pick Up 12 | 4 3 2 2 1 Fast Attach 7 | 6 1 . . . Attach 2 | . . 1 . 1 Detach . | . . . . . Swap 17 | . 5 6 1 5 Drop 5 | . 2 1 2 . Fire 60 | . 15 19 . 26 Melee . | . . . . . Ram . | . . . . . Kick . | . . . . . Crush 2 | . . 2 . . Escape Stasis . | . . . . . Rewire . | . . . . . Trap . | . . . . . Miscellaneous . | . . . . . Route ------- -11/Scrapyard -10/Materials -10/Mines (discovered 2 exits: [*Mat] / *Exi) -10/Exiles -9/Mines History --------- Turn | Location | Event 7 | -11/Scrapyard | Discovered new exit (range 15) 126 | -11/Scrapyard | Entered Materials 286 | -10/Materials | Discovered new exit (range 16) 305 | -10/Materials | Build established: Mutant 381 | -10/Materials | Entered Mines 488 | -10/Mines | Core integrity fell below 50% 735 | -10/Mines | Discovered new exit (range 10) 826 | -10/Mines | A weapon hastily lodged in a ceiling crevice suddenly fell to the ground 1086 | -10/Mines | Deemed a non-threat by the Exiles lab entrance 1088 | -10/Mines | Discovered new exit (range 5) 1096 | -10/Mines | Entered Exiles 1146 | -10/Exiles | Discovered new exit (range 15) 1159 | -10/Exiles | Met 8R-AWN 1186 | -10/Exiles | Met EX-HEX 1241 | -10/Exiles | Met EX-BIN 1265 | -10/Exiles | Aligned with FarCom system 1266 | -10/Exiles | Given EX-Vault access code 1337 | -10/Exiles | Opened EX-Vault 1353 | -10/Exiles | Found Prototype Processor 1426 | -10/Exiles | Warned to stay clear of 0b10 Research branches 1674 | -10/Exiles | Entered Mines 1754 | -9/Mines | Excavation squad dispatched 1754 | -9/Mines | A large section of the Mines collapsed 2004 | -9/Mines | Excavation squad dispatched 2127 | -9/Mines | Core integrity fell below 20% 2139 | -9/Mines | Crushed by falling debris 2139 | -9/Mines | Smashed by cave-in Last Messages --------------- 02114_ HV Slug penetrates T-07 Excavator. 02114_ T-07 Excavator destroyed. 02124_ K-01 Serf collects debris. 02129_ Acquired 41 matter. 02131_ K-01 Serf collects debris. 02131_ Acquired 31 matter. 02132_ G-34 Mercenary suffers critical hit. 02132_ Destroyed Sml. Laser. 02132_ G-34 Mercenary knocked back. 02134_ K-01 Serf collects debris. 02134_ HV Slug penetrates G-34 Mercenary. 02134_ G-34 Mercenary knocked back. 02136_ HV Slug penetrates G-34 Mercenary. 02136_ G-34 Mercenary suffers critical hit. 02136_ Destroyed Aluminum Leg. 02137_ K-01 Serf collects debris. 02138_ HV Slug penetrates G-34 Mercenary. 02138_ G-34 Mercenary destroyed. 02139_ The unstable cave ceiling collapses. 02139_ Crushed by falling debris. Map ----- +----------------------------------------------------+ | ?????????????????????????????????????????????????? | | ?????????????????????????????????????????????????? | | ?????????????????????????????????????????????????? | | ?????????????????????????????????????????????????? | | ?????????????????????????????????????????????????? | | ?????????????????????????????????????????????????? | | ?????????????????????????????????????????????????? | | ?????????????????????????????????????????????????? | | ?????????????????????????????????????????????????? | | ?????????????????????????????????????????????????? | | ?????????????????????????????????????????????????? | | ?????????????????????????????????????????????????? | | ?????????????????????????????????????????????????? | | ?????????????????????????????????????????????????? | | ?????????????????????????????????????????###?????? | | ?????????????????????????????????????????# ?????? | | ??????????????????C??????????????????????# #?????? | | ?????????????????????????????????????????# #?????? | | ?????????????????????????????????????????# #?????? | | ?????????????????????????????????????????# #?????? | | ?????????????????????????????????????????# #?????? | | ????????????????????????????????????###### #?????? | | ??????????????????????#############?# #?????? | | ??????????????????????# ; *| #?# ######?????? | | ??????????????????###?###;=!%= #?# #??????????? | | ?????????????????## #??#@%=!### #?# ##?????????? | | ?????????????????# #?#[k%;#?# ### ##????????? | | ?????????????????# %=##;!=##?# ## ##???????? | | ???????????????? | #??#$ ### #???? | | ???????????????? ##??# #???? | | ####????????????# ##?#### # * #####???? | | # ##??????????## ????# ###!##???????? | | ##?????????? #????# #?#%#????????? | | #??????????? % ### #????# #?#|#????????? | | ##??????????? ##### ###### #?#"#????#???? | | ##??????????? ! #?# == #?###????????? | | #??????????##%=#?# ## ########?# ##???????? | | #???????????# #?# ! ## #????## ##??????? | | ##?????????## ### = #???## ##?????? | | ###???????## ## # = ##???? #?????? | | ### ##??##### ** ##???? ??????? | | #### #### #????? ???????? | | #?#### [ #???? ????????? | | #??## #### ##### g ##???###????????? | | #??### ##??#####???#### ##### #????????? | | #???#####??????????????## "[ #????????? | | #???????????????????????## ## ###????????? | | #??????????????????????#?##########????????? | | #??????????????????????????????????????????? | | # ##??????????????????????????????????????????? | +----------------------------------------------------+ Best States ------------- Heat Dissipation 25 Energy Generation 10 Energy Capacity 125 Matter Stores 265 Matter Capacity 300 Sight Range 16 Robot Scan Range 10 Terrain Scan Range 14 Terrain Scan Density 10 Evasion (%) 40 Recoil Reduction 2 Item Schematics ----------------- None Robot Schematics ------------------ None Fabricated ------------ Nothing Alien Tech Used ----------------- None Achievements -------------- Backstab Challenges ------------ None Game ------ Seed SuperchargedGatlingTearclaws Manual? 0 Play Time 00:20:16 Cumulative 10.5 hours Start 2019.11.04 @ 20:36:36 End 2019.11.04 @ 20:55:17 Sessions 1 Manual Loads 0 Difficulty Rogue Special Mode None Game No. 29 Rogue 29 Adventurer 0 Explorer 0 Win Type - Total 0 Types 0/0/0/0/0/0/0 Lore% 7 Gallery% 15 Achievement% 10 Wizard Run 0 Options --------- ASCII 0 Keyboard 1 Movement Numpad Keybinds 0 Fullscreen 1 Font 18/SmallcapsGlow Map View 76x50 Tactical HUD 1 Map Filters NONE Filters NONE Steam 1 RUN: 319e2019-ed28-4561-8e63-33dc43616e7c